fUST/lending_fUST_20250924
["ID","MTS","AMOUNT","RATE_DAILY","PERIOD"]
[387397649,1758712252278,-151.0,0.00021918,2]
[387397650,1758712252287,-151.0,0.00021918,2]
[387397651,1758712252296,-151.0,0.00021918,2]
[387397652,1758712252304,-151.0,0.00021918,2]
[387397653,1758712252312,-151.0,0.00021918,2]
[387397654,1758712252321,-151.0,0.00021918,2]
[387397655,1758712252329,-151.0,0.00021918,2]
[387397656,1758712252338,-151.0,0.00021918,2]
[387397657,1758712252407,-151.0,0.00021918,2]
[387397658,1758712252418,-151.0,0.00021918,2]
[387397659,1758712252427,-151.0,0.00021918,2]
[387397660,1758712252436,-151.0,0.00021918,2]
[387397661,1758712252445,-166.31787,0.00021918,2]
[387397662,1758712252455,-1000.0,0.0002192,2]
[387397663,1758712252465,-1000.0,0.0002192,2]
[387397664,1758712252474,-1000.0,0.00021927,2]
[387397665,1758712252484,-1000.0,0.0002194,2]
[387397666,1758712252493,-1000.0,0.0002194,2]
[387397667,1758712252503,-1000.0,0.00021956,2]
[387397668,1758712252512,-1000.0,0.00021956,2]
[387397669,1758712252521,-480.0,0.00021964,2]
[387397670,1758712252530,-1261.85483045,0.00021986,2]
[387397671,1758712252539,-1500.0,0.00021986,2]
[387397672,1758712252548,-163.0,0.00022,2]
[387397673,1758712252557,-2502.19694336,0.00022044,2]
[387397674,1758712252567,-1000.0,0.00022072,2]
[387397675,1758712252576,-1000.0,0.00022072,2]
[387397676,1758712252586,-360.0,0.00022083,2]
[387397677,1758712252595,-588.38732479,0.00022086,2]
[387397678,1758712252605,-551.64851946,0.00022096,2]
[387397679,1758712252614,-351.3606592,0.00022096,2]
[387397680,1758712252626,-148.6393408,0.00022096,2]
[387397681,1758712252635,-1001.11660757,0.00022096,2]
[387397682,1758712252645,-1500.0,0.00022096,2]
[387397683,1758712252655,-1009.68857799,0.00022096,2]
[387397684,1758712252665,-1500.0,0.00022096,2]
[387397685,1758712252674,-1027.39052683,0.00022096,2]
[387397686,1758712252683,-151.0,0.00022098,7]
[387397687,1758712252692,-151.0,0.000221,6]
[387397688,1758712252702,-1000.0,0.00022109,2]
[387397689,1758712252711,-1000.0,0.00022109,2]
[387397690,1758712252720,-1000.0,0.00022109,2]
[387397691,1758712252730,-1000.0,0.00022109,2]
[387397692,1758712252739,-1000.0,0.0002211,2]
[387397693,1758712252749,-504.07436454,0.00022122,2]
[387397694,1758712252759,-203.976724,0.00022122,7]
[387397695,1758712252768,-203.976724,0.00022122,7]
[387397696,1758712252778,-203.976724,0.00022122,7]
[387397697,1758712252787,-203.976724,0.00022122,7]
[387397698,1758712252796,-154.182631,0.00022191,7]
[387397699,1758712252806,-504.27,0.00022191,2]
[387397700,1758712252815,-480.0,0.00022191,2]
[387397701,1758712252825,-523.97,0.00022191,2]
[387397702,1758712252834,-841.36,0.00022191,2]
[387397703,1758712252844,-974.9,0.00022191,2]
[387397704,1758712252856,-480.0,0.00022191,2]
[387397705,1758712252865,-1848.29,0.00022191,2]
[387397706,1758712252874,-480.0,0.00022191,2]
[387397707,1758712252885,-271.96530751,0.00022191,2]
[387397708,1758712252894,-469.21008924,0.00022191,2]
[387397709,1758712252903,-480.0,0.00022191,2]
[387397710,1758712252913,-821.99,0.00022191,2]
[387397711,1758712252924,-498.35,0.00022191,2]
[387397712,1758712252933,-840.33,0.00022191,2]
[387397713,1758712252943,-815.98,0.00022191,2]
[387397714,1758712252952,-544.68,0.00022191,2]
[387397715,1758712252961,-932.22,0.00022191,2]
[387397716,1758712252970,-756.16,0.00022191,2]
[387397717,1758712252980,-480.0,0.00022191,2]
[387397718,1758712252989,-480.0,0.00022191,2]
[387397719,1758712252998,-1726.74,0.00022191,2]
[387397720,1758712253009,-733.22,0.00022191,2]
[387397721,1758712253018,-716.15,0.00022191,2]
[387397722,1758712253027,-3000.0,0.00022212,2]
[387397723,1758712253036,-248.0,0.00022238,7]
[387397724,1758712253045,-139.32959459,0.00022238,2]
[387397725,1758712451046,5000.0,0.0001922,14]
[387397726,1758712475938,5000.0,0.0001922,14]
[387397727,1758712499653,5000.0,0.0001922,14]
[387397728,1758712570582,3195.0,0.000192,14]
[387397729,1758712589980,353.01,0.00023506,30]
[387397732,1758712711395,5000.0,0.0001922,14]
[387397733,1758712735229,2225.9924704,0.00018001,2]
[387397734,1758712735251,2774.0075296,0.00018001,2]
[387397735,1758712759328,5000.0,0.00018001,2]
[387397736,1758712783403,2226.0024704,0.00018001,2]
[387397737,1758712783426,2773.9975296,0.00018001,2]
[387397738,1758712807988,5000.0,0.00018001,2]
[387397739,1758712833291,5000.0,0.00018001,2]
[387397740,1758712857251,0.01,0.00018001,2]
[387397741,1758712857277,4999.99,0.00018001,2]
[387397742,1758712863978,-329.131459,0.00018086,2]
[387397743,1758712864008,-666.0,0.00018086,2]
[387397744,1758712864036,-1470.1352295,0.00018086,2]
[387397745,1758712864065,-300.0,0.00018244,2]
[387397746,1758712864094,-843.0,0.00018245,2]
[387397747,1758712864122,-1200.0,0.00018245,2]
[387397748,1758712864150,-160.0,0.00018245,2]
[387397749,1758712884102,5000.0,0.00018001,2]
[387397750,1758712909312,5000.0,0.00018001,2]
[387397751,1758712934401,0.01,0.00018001,2]
[387397752,1758712934425,4999.99,0.00018001,2]
[387397753,1758712958553,5000.0,0.00018001,2]
[387397754,1758712982899,0.02,0.00018001,2]
[387397755,1758712982921,4999.98,0.00018001,2]
[387397756,1758712994257,-300.0,0.00018245,2]
[387397757,1758713007544,5000.0,0.00018001,2]
[387397758,1758713032531,5000.0,0.00018001,2]
[387397759,1758713049731,-300.0,0.00018245,2]
[387397760,1758713058269,5000.0,0.00018001,2]
[387397761,1758713070831,365.68,0.00023831,30]
[387397762,1758713085644,5000.0,0.00018001,2]
[387397763,1758713109280,-300.0,0.00018245,2]
[387397764,1758713109310,-1200.0,0.00018245,2]
[387397765,1758713111334,5000.0,0.00018001,2]
[387397767,1758713127842,-1939.05553086,0.00018246,2]
[387397769,1758713136732,5000.0,0.00018001,2]
[387397770,1758713139304,-875.6670887,0.00018179,2]
[387397771,1758713139333,-3214.7679123,0.00018179,2]
[387397772,1758713139366,-1819.139998,0.00018179,2]
[387397773,1758713141430,6119.22399055,0.00029428,120]
[387397774,1758713159555,-10000.01,0.00018246,2]
[387397775,1758713159904,363.68,0.00023854,30]
[387397776,1758713162679,-283.515634,0.00018001,2]
[387397777,1758713169492,-4716.484366,0.00018001,2]
[387397779,1758713186545,567.041268,0.00018001,2]
[387397780,1758713186569,4432.958732,0.00018001,2]
[387397781,1758713203266,-241.98931471,0.00018246,2]
[387397783,1758713212163,5000.0,0.00018001,2]
[387397786,1758713236664,567.051268,0.00018001,2]
[387397787,1758713236686,4432.948732,0.00018001,2]
[387397789,1758713248897,361.7,0.0002395,30]
[387397790,1758713261224,5000.0,0.00018001,2]
[387397792,1758713273259,567.061268,0.00018,2]
[387397793,1758713273282,10000.01,0.00018,2]
[387397794,1758713273304,10000.01,0.00018,2]
[387397795,1758713273327,10000.01,0.00018,2]
[387397796,1758713273349,6668.74786447,0.00018,2]
[387397801,1758713298351,10000.01,0.000125,2]
[387397802,1758713298374,1489.56389693,0.000125,2]
[387397807,1758713311953,285.35433507,0.0001,2]
[387397814,1758713337729,359.72,0.00023769,30]
[387397817,1758713428197,357.76,0.00023298,30]
[387397887,1758713432729,-281.95768232,0.00018054,2]
[387397899,1758713432787,-1128.6,0.00018054,2]
[387397905,1758713432843,-455.03731312,0.00018054,2]
[387398040,1758713438789,-2350.0,0.00018054,2]
[387398043,1758713438806,-784.40500456,0.00018054,2]
[387398045,1758713438815,-300.0,0.00018245,2]
[387398047,1758713438825,-300.0,0.00018245,2]
[387398049,1758713438834,-300.0,0.00018245,2]
[387398051,1758713438843,-300.0,0.00018245,2]
[387398053,1758713438854,-300.0,0.00018245,2]
[387398055,1758713438863,-1200.0,0.00018245,2]
[387398057,1758713438872,-654.71270893,0.00018246,2]
[387398058,1758713438881,-3745.05702654,0.00018246,2]
[387398059,1758713438890,-175.0861509,0.00018286,2]
[387398060,1758713438900,-302.54622906,0.000189,2]
[387398061,1758713438909,-302.54622906,0.00019089,2]
[387398062,1758713438918,-1200.0,0.00019176,2]
[387398063,1758713438927,-157.298,0.00019177,2]
[387398064,1758713438937,-1000.0,0.00019177,2]
[387398065,1758713438946,-1000.0,0.00019177,2]
[387398066,1758713438956,-1058.77,0.00019177,2]
[387398067,1758713438966,-500.0,0.00019177,2]
[387398068,1758713438976,-500.0,0.00019177,2]
[387398069,1758713438986,-357.97695339,0.00019177,2]
[387398070,1758713438996,-480.64494272,0.00019178,2]
[387398071,1758713439006,-480.0,0.00019178,2]
[387398072,1758713439015,-480.0,0.00019178,2]
[387398073,1758713439025,-480.0,0.00019178,2]
[387398074,1758713439035,-480.0,0.00019178,2]
[387398075,1758713439045,-481.42039899,0.00019178,2]
[387398076,1758713439054,-480.0,0.00019178,2]
[387398077,1758713439064,-480.0,0.00019178,2]
[387398078,1758713439074,-480.0,0.00019178,2]
[387398079,1758713439083,-480.0,0.00019178,2]
[387398080,1758713439092,-480.0,0.00019178,2]
[387398081,1758713439101,-518.9649832,0.00019178,2]
[387398082,1758713439111,-480.0,0.00019178,2]
[387398083,1758713439120,-480.0,0.00019178,2]
[387398084,1758713439130,-480.0,0.00019178,2]
[387398085,1758713439139,-480.0,0.00019178,2]
[387398086,1758713439148,-480.0,0.00019178,2]
[387398087,1758713439158,-480.0,0.00019178,2]
[387398088,1758713439167,-480.0,0.00019178,2]
[387398089,1758713439176,-480.0,0.00019178,2]
[387398090,1758713439185,-480.0,0.00019178,2]
[387398091,1758713439196,-480.0,0.00019178,2]
[387398092,1758713439205,-480.0,0.00019178,2]
[387398093,1758713439215,-480.0,0.00019178,2]
[387398094,1758713439224,-480.0,0.00019178,2]
[387398095,1758713439234,-480.0,0.00019178,2]
[387398096,1758713439243,-480.0,0.00019178,2]
[387398097,1758713439253,-490.42354924,0.00019178,2]
[387398098,1758713439262,-480.0,0.00019178,2]
[387398099,1758713439272,-480.0,0.00019178,2]
[387398100,1758713439282,-480.0,0.00019178,2]
[387398101,1758713439292,-480.0,0.00019178,2]
[387398102,1758713439302,-480.0,0.00019178,2]
[387398103,1758713439311,-480.0,0.00019178,2]
[387398104,1758713439321,-480.0,0.00019178,2]
[387398105,1758713439330,-500.0,0.00019178,2]
[387398106,1758713439339,-500.0,0.00019178,2]
[387398107,1758713439348,-500.0,0.00019178,2]
[387398108,1758713439358,-480.0,0.00019178,2]
[387398109,1758713439367,-480.0,0.00019178,2]
[387398110,1758713439377,-480.0,0.00019178,2]
[387398111,1758713439386,-186.8897468,0.00019178,2]
[387398112,1758713439395,-480.0,0.00019178,2]
[387398113,1758713439404,-480.0,0.00019178,2]
[387398114,1758713439414,-480.0,0.00019178,2]
[387398115,1758713439423,-262.3187295,0.00019178,2]
[387398116,1758713439432,-480.0,0.00019178,2]
[387398117,1758713439441,-480.0,0.00019178,2]
[387398118,1758713439450,-480.0,0.00019178,2]
[387398119,1758713439459,-480.0,0.00019178,2]
[387398120,1758713439469,-480.0,0.00019178,2]
[387398121,1758713439479,-480.0,0.00019178,2]
[387398122,1758713439489,-480.0,0.00019178,2]
[387398123,1758713439498,-480.0,0.00019178,2]
[387398124,1758713439507,-480.0,0.00019178,2]
[387398125,1758713439516,-480.0,0.00019178,2]
[387398126,1758713439527,-480.0,0.00019178,2]
[387398127,1758713439537,-480.0,0.00019178,2]
[387398128,1758713439549,-480.0,0.00019178,2]
[387398129,1758713439558,-480.0,0.00019178,2]
[387398130,1758713439567,-480.0,0.00019178,2]
[387398131,1758713439577,-480.0,0.00019178,2]
[387398132,1758713439586,-480.0,0.00019178,2]
[387398133,1758713439596,-288.02002973,0.00019178,2]
[387398134,1758713439605,-480.0,0.00019178,2]
[387398135,1758713439615,-480.0,0.00019178,2]
[387398136,1758713439625,-480.0,0.00019178,2]
[387398137,1758713439634,-480.0,0.00019178,2]
[387398138,1758713439643,-480.0,0.00019178,2]
[387398139,1758713439652,-480.0,0.00019178,2]
[387398140,1758713439661,-480.0,0.00019178,2]
[387398141,1758713439671,-480.0,0.00019178,2]
[387398142,1758713439680,-2166.21,0.00019178,2]
[387398143,1758713439690,-480.0,0.00019178,2]
[387398144,1758713439698,-480.0,0.00019178,2]
[387398145,1758713439708,-616.49,0.00019178,2]
[387398146,1758713439716,-480.0,0.00019178,2]
[387398147,1758713439725,-577.35655747,0.00019178,2]
[387398148,1758713439735,-480.0,0.00019178,2]
[387398149,1758713439744,-480.0,0.00019178,2]
[387398150,1758713439753,-480.0,0.00019178,2]
[387398151,1758713439762,-480.0,0.00019178,2]
[387398152,1758713439772,-1000.0,0.00019178,2]
[387398153,1758713439781,-480.0,0.00019178,2]
[387398154,1758713439790,-611.99,0.00019178,2]
[387398155,1758713439799,-480.0,0.00019178,2]
[387398156,1758713439809,-480.0,0.00019178,2]
[387398157,1758713439819,-1386.22,0.00019178,2]
[387398158,1758713439828,-480.0,0.00019178,2]
[387398159,1758713439837,-480.0,0.00019178,2]
[387398160,1758713439846,-480.0,0.00019178,2]
[387398161,1758713439854,-654.45,0.00019178,2]
[387398162,1758713439864,-480.0,0.00019178,2]
[387398163,1758713439873,-480.0,0.00019178,2]
[387398164,1758713439882,-480.0,0.00019178,2]
[387398165,1758713439892,-480.0,0.00019178,2]
[387398166,1758713439901,-480.0,0.00019178,2]
[387398167,1758713439910,-480.0,0.00019178,2]
[387398168,1758713439921,-480.0,0.00019178,2]
[387398169,1758713439930,-480.0,0.00019178,2]
[387398170,1758713439939,-480.0,0.00019178,2]
[387398171,1758713439949,-731.18,0.00019178,2]
[387398172,1758713439958,-940.74,0.00019178,2]
[387398173,1758713439969,-480.0,0.00019178,2]
[387398174,1758713439978,-749.28,0.00019178,2]
[387398175,1758713439987,-480.0,0.00019178,2]
[387398176,1758713439997,-481.09356457,0.00019178,2]
[387398177,1758713440006,-500.0,0.00019178,2]
[387398178,1758713440015,-480.0,0.00019178,2]
[387398179,1758713440024,-480.0,0.00019178,2]
[387398180,1758713440035,-480.0,0.00019178,2]
[387398181,1758713440044,-480.0,0.00019178,2]
[387398182,1758713440054,-480.0,0.00019178,2]
[387398183,1758713440062,-480.0,0.00019178,2]
[387398184,1758713440071,-480.0,0.00019178,2]
[387398185,1758713440080,-480.0,0.00019178,2]
[387398186,1758713440091,-480.0,0.00019178,2]
[387398187,1758713440100,-480.0,0.00019178,2]
[387398188,1758713440109,-699.16,0.00019178,2]
[387398189,1758713440118,-480.0,0.00019178,2]
[387398190,1758713440128,-480.0,0.00019178,2]
[387398191,1758713440138,-481.40249902,0.00019178,2]
[387398192,1758713440147,-480.0,0.00019178,2]
[387398193,1758713440157,-480.0,0.00019178,2]
[387398194,1758713440166,-481.44435965,0.00019178,2]
[387398195,1758713440176,-480.0,0.00019178,2]
[387398196,1758713440186,-480.0,0.00019178,2]
[387398197,1758713440195,-480.0,0.00019178,2]
[387398199,1758713440205,-482.4347397,0.00019178,2]
[387398201,1758713440214,-480.0,0.00019178,2]
[387398202,1758713440223,-484.4597228,0.00019178,2]
[387398204,1758713440233,-3215.17,0.00019178,2]
[387398206,1758713440242,-480.0,0.00019178,2]
[387398207,1758713440251,-480.0,0.00019178,2]
[387398209,1758713440260,-480.0,0.00019178,2]
[387398210,1758713440270,-480.0,0.00019178,2]
[387398211,1758713440280,-480.0,0.00019178,2]
[387398212,1758713440289,-480.0,0.00019178,2]
[387398213,1758713440299,-480.0,0.00019178,2]
[387398214,1758713440308,-480.0,0.00019178,2]
[387398215,1758713440317,-480.0,0.00019178,2]
[387398216,1758713440327,-490.29688009,0.00019178,2]
[387398217,1758713440336,-480.0,0.00019178,2]
[387398218,1758713440345,-480.0,0.00019178,2]
[387398219,1758713440356,-480.0,0.00019178,2]
[387398221,1758713440365,-480.0,0.00019178,2]
[387398222,1758713440376,-480.0,0.00019178,2]
[387398223,1758713440386,-480.0,0.00019178,2]
[387398224,1758713440395,-480.0,0.00019178,2]
[387398225,1758713440405,-480.0,0.00019178,2]
[387398226,1758713440415,-482.1966451,0.00019178,2]
[387398227,1758713440423,-482.07270938,0.00019178,2]
[387398228,1758713440433,-480.0,0.00019178,2]
[387398229,1758713440442,-453.96803625,0.00019178,2]
[387398230,1758713440453,-480.0,0.00019178,2]
[387398231,1758713440463,-481.80474703,0.00019178,2]
[387398233,1758713440472,-480.0,0.00019178,2]
[387398234,1758713440482,-480.0,0.00019178,2]
[387398235,1758713440491,-718.36,0.00019178,2]
[387398236,1758713440500,-480.0,0.00019178,2]
[387398237,1758713440509,-480.0,0.00019178,2]
[387398238,1758713440519,-480.0,0.00019178,2]
[387398239,1758713440528,-1295.05,0.00019178,2]
[387398240,1758713440540,-480.0,0.00019178,2]
[387398241,1758713440550,-480.0,0.00019178,2]
[387398242,1758713440559,-1937.4,0.00019178,2]
[387398243,1758713440569,-480.0,0.00019178,2]
[387398244,1758713440579,-480.0,0.00019178,2]
[387398245,1758713440589,-480.0,0.00019178,2]
[387398246,1758713440599,-480.0,0.00019178,2]
[387398248,1758713440608,-480.0,0.00019178,2]
[387398249,1758713440617,-480.0,0.00019178,2]
[387398251,1758713440627,-480.0,0.00019178,2]
[387398253,1758713440636,-537.11,0.00019178,2]
[387398255,1758713440646,-480.0,0.00019178,2]
[387398256,1758713440655,-480.0,0.00019178,2]
[387398257,1758713440665,-480.0,0.00019178,2]
[387398259,1758713440675,-480.0,0.00019178,2]
[387398260,1758713440684,-480.0,0.00019178,2]
[387398267,1758713440694,-280.02645426,0.00019178,2]
[387398269,1758713440779,-483.85496651,0.00019178,2]
[387398271,1758713440788,-480.0,0.00019178,2]
[387398273,1758713440797,-480.0,0.00019178,2]
[387398274,1758713440807,-480.0,0.00019178,2]
[387398275,1758713440817,-480.0,0.00019178,2]
[387398276,1758713440826,-480.0,0.00019178,2]
[387398277,1758713440836,-480.0,0.00019178,2]
[387398278,1758713440845,-480.0,0.00019178,2]
[387398279,1758713440854,-480.0,0.00019178,2]
[387398280,1758713440864,-480.0,0.00019178,2]
[387398281,1758713440873,-549.91,0.00019178,2]
[387398282,1758713440883,-480.0,0.00019178,2]
[387398283,1758713440892,-158.60574985,0.00019273,2]
[387398284,1758713440901,-3060.52759355,0.00019273,2]
[387398285,1758713440910,-302.54622906,0.00019278,2]
[387398286,1758713440919,-152.05074067,0.0001934,2]
[387398287,1758713440929,-500.0,0.0001935,2]
[387398288,1758713440939,-500.0,0.00019351,2]
[387398289,1758713440947,-500.0,0.00019351,2]
[387398290,1758713440956,-500.0,0.00019351,2]
[387398291,1758713440965,-500.0,0.00019351,2]
[387398292,1758713440975,-381.83633928,0.00019351,2]
[387398293,1758713440984,-500.0,0.00019351,2]
[387398294,1758713440993,-232.00961132,0.00019351,2]
[387398295,1758713441003,-500.0,0.00019351,2]
[387398296,1758713441012,-500.0,0.00019351,2]
[387398297,1758713441021,-500.0,0.00019351,2]
[387398298,1758713441030,-500.0,0.00019351,2]
[387398299,1758713441040,-500.0,0.00019351,2]
[387398300,1758713441049,-500.0,0.00019351,2]
[387398301,1758713441059,-500.0,0.00019351,2]
[387398302,1758713441068,-500.0,0.00019351,2]
[387398303,1758713441078,-500.0,0.00019351,2]
[387398304,1758713441087,-500.0,0.00019351,2]
[387398305,1758713441096,-500.0,0.00019351,2]
[387398306,1758713441106,-500.0,0.00019351,2]
[387398307,1758713441115,-500.0,0.00019351,2]
[387398308,1758713441124,-500.0,0.00019351,2]
[387398309,1758713441133,-500.0,0.00019351,2]
[387398310,1758713441142,-500.0,0.00019351,2]
[387398311,1758713441151,-266.81957918,0.00019351,2]
[387398312,1758713441160,-500.0,0.00019351,2]
[387398313,1758713441169,-500.0,0.00019351,2]
[387398314,1758713441179,-500.0,0.00019351,2]
[387398315,1758713441188,-500.0,0.00019351,2]
[387398316,1758713441197,-500.0,0.00019351,2]
[387398317,1758713441206,-500.0,0.00019351,2]
[387398318,1758713441215,-370000.0,0.00019352,2]
[387398319,1758713441225,-500.0,0.00019373,2]
[387398320,1758713441234,-500.0,0.00019373,2]
[387398321,1758713441243,-500.0,0.00019373,2]
[387398322,1758713441253,-500.0,0.00019373,2]
[387398323,1758713441262,-500.0,0.00019373,2]
[387398324,1758713441272,-500.0,0.00019373,2]
[387398325,1758713441282,-297.99492982,0.00019452,2]
[387398326,1758713441291,-480.0,0.00019452,2]
[387398327,1758713441300,-480.0,0.00019452,2]
[387398328,1758713441310,-480.0,0.00019452,2]
[387398329,1758713441318,-480.0,0.00019452,2]
[387398330,1758713441328,-480.0,0.00019452,2]
[387398331,1758713441337,-480.0,0.00019452,2]
[387398332,1758713441346,-480.0,0.00019452,2]
[387398333,1758713441356,-480.0,0.00019452,2]
[387398334,1758713441365,-480.0,0.00019452,2]
[387398335,1758713441375,-480.0,0.00019452,2]
[387398336,1758713441384,-487.99665548,0.00019452,2]
[387398337,1758713441393,-480.0,0.00019452,2]
[387398338,1758713441402,-480.0,0.00019452,2]
[387398339,1758713441411,-480.0,0.00019452,2]
[387398340,1758713441420,-480.0,0.00019452,2]
[387398341,1758713441431,-480.0,0.00019452,2]
[387398342,1758713441441,-480.0,0.00019452,2]
[387398343,1758713441450,-480.0,0.00019452,2]
[387398344,1758713441460,-480.0,0.00019452,2]
[387398345,1758713441470,-480.0,0.00019452,2]
[387398346,1758713441480,-480.0,0.00019452,2]
[387398347,1758713441491,-480.0,0.00019452,2]
[387398348,1758713441502,-480.0,0.00019452,2]
[387398349,1758713441512,-480.0,0.00019452,2]
[387398350,1758713441521,-480.0,0.00019452,2]
[387398351,1758713441531,-480.0,0.00019452,2]
[387398352,1758713441546,-2166.21,0.00019452,2]
[387398353,1758713441555,-480.0,0.00019452,2]
[387398354,1758713441565,-480.0,0.00019452,2]
[387398355,1758713441574,-480.0,0.00019452,2]
[387398356,1758713441585,-616.49,0.00019452,2]
[387398357,1758713441594,-480.0,0.00019452,2]
[387398358,1758713441603,-480.0,0.00019452,2]
[387398359,1758713441614,-480.0,0.00019452,2]
[387398360,1758713441623,-480.0,0.00019452,2]
[387398361,1758713441632,-506.89163456,0.00019452,2]
[387398362,1758713441642,-611.99,0.00019452,2]
[387398363,1758713441650,-480.0,0.00019452,2]
[387398364,1758713441659,-1386.22,0.00019452,2]
[387398365,1758713441668,-480.0,0.00019452,2]
[387398366,1758713441678,-480.0,0.00019452,2]
[387398367,1758713441687,-654.45,0.00019452,2]
[387398368,1758713441696,-480.0,0.00019452,2]
[387398369,1758713441706,-480.0,0.00019452,2]
[387398370,1758713441715,-190.54448709,0.00019452,2]
[387398371,1758713441725,-480.0,0.00019452,2]
[387398372,1758713441735,-731.18,0.00019452,2]
[387398373,1758713441744,-940.74,0.00019452,2]
[387398374,1758713441753,-749.28,0.00019452,2]
[387398375,1758713441762,-480.0,0.00019452,2]
[387398376,1758713441772,-480.0,0.00019452,2]
[387398377,1758713441781,-480.0,0.00019452,2]
[387398378,1758713441790,-480.0,0.00019452,2]
[387398379,1758713441801,-480.0,0.00019452,2]
[387398380,1758713441810,-480.0,0.00019452,2]
[387398381,1758713441819,-480.0,0.00019452,2]
[387398382,1758713441828,-480.0,0.00019452,2]
[387398383,1758713441838,-699.16,0.00019452,2]
[387398384,1758713441846,-480.0,0.00019452,2]
[387398385,1758713441856,-480.0,0.00019452,2]
[387398386,1758713441866,-480.0,0.00019452,2]
[387398387,1758713441876,-480.0,0.00019452,2]
[387398388,1758713441885,-579.99628243,0.00019452,2]
[387398389,1758713441894,-480.0,0.00019452,2]
[387398390,1758713441903,-3215.17,0.00019452,2]
[387398391,1758713441912,-480.0,0.00019452,2]
[387398392,1758713441922,-480.0,0.00019452,2]
[387398393,1758713441931,-480.0,0.00019452,2]
[387398394,1758713441940,-480.0,0.00019452,2]
[387398395,1758713441949,-480.0,0.00019452,2]
[387398396,1758713441959,-492.46005353,0.00019452,2]
[387398397,1758713441969,-563.97122713,0.00019452,2]
[387398398,1758713441978,-480.0,0.00019452,2]
[387398399,1758713441987,-452.46654799,0.00019452,2]
[387398400,1758713441998,-480.0,0.00019452,2]
[387398401,1758713442007,-480.0,0.00019452,2]
[387398402,1758713442017,-220.14755957,0.00019452,2]
[387398403,1758713442027,-480.0,0.00019452,2]
[387398404,1758713442036,-480.0,0.00019452,2]
[387398405,1758713442045,-480.0,0.00019452,2]
[387398406,1758713442055,-208.65849592,0.00019452,2]
[387398407,1758713442064,-718.36,0.00019452,2]
[387398408,1758713442074,-1295.05,0.00019452,2]
[387398409,1758713442083,-480.0,0.00019452,2]
[387398410,1758713442092,-1937.4,0.00019452,2]
[387398411,1758713442102,-480.0,0.00019452,2]
[387398412,1758713442112,-480.0,0.00019452,2]
[387398413,1758713442121,-480.0,0.00019452,2]
[387398414,1758713442130,-537.11,0.00019452,2]
[387398415,1758713442139,-480.0,0.00019452,2]
[387398416,1758713442149,-480.0,0.00019452,2]
[387398417,1758713442159,-480.0,0.00019452,2]
[387398418,1758713442168,-480.0,0.00019452,2]
[387398419,1758713442179,-480.0,0.00019452,2]
[387398420,1758713442188,-480.0,0.00019452,2]
[387398421,1758713442197,-480.0,0.00019452,2]
[387398422,1758713442206,-549.91,0.00019452,2]
[387398423,1758713442216,-480.0,0.00019452,2]